{"text_format":"1","workbook":"xlsx","n_sheets":2,"sheets":["Night_Market","Inventaire_MN"],"not_rendered":{"charts":0,"images":0,"macros":1,"external_links":0,"defined_names":54,"comments":0,"pivot_tables":0},"unopened":[],"bounds":{"document_bytes":16777216,"sheet_cells":100000,"rows_first":2000,"rows_last":500,"rows_between":2000,"halvings":0,"cell_chars":16384,"cell_head_chars":4096},"cells_cut":0,"cells_raw":0,"read":"whole","date_system":"1900"}

{"sheet":"Night_Market","index":0,"n_rows":15,"n_cols":10,"rows_kept":15,"cut":false,"hidden":false,"merged":[[9,9,9,13],[0,2,0,3],[5,9,5,13],[6,9,6,13],[7,9,7,13],[8,9,8,13]]}
[]
[null,null,"Le premier type de biens","Le deuxième type de biens ",null,null,null,null,null,"Créé par Vinni47 et partagé sur Reedit"]
[null,null,{"$f":"INDEX(Inventaire_MN!C1:G1,$F$3)","v":"Cybermatériel"},"Armes et protections",null,{"$f":"RANDBETWEEN(1,5)","v":3},null,null,null,"Focntions reprises par Gormarius"]
[null,null,{"$f":"RANDBETWEEN(1,10)","v":9},{"$f":"RANDBETWEEN(1,10)","v":8},null,null,null,null,null,"BDD traduite par Alexis.D pour la version FR"]
[null,null,"Nouvel équipement",false,null,null,null,null,null,"Règles"]
[null,{"$f":"IF($F6<=$C$4,RANDBETWEEN(1,100),\"\")","v":77},{"$f":"IF($F6<=$C$4,INDEX(Inventaire_MN!$C$2:$H$21,MATCH(1,(Inventaire_MN!$A$2:$A$21<=B6)*(Inventaire_MN!$B$2:$B$21>=B6),0),$F$3),\"\")","v":"Extension cybermembre coûtant exactement 1.000 ED"},{"$f":"IF($F6<=$D$4,INDEX(Inventaire_MN!$A$2:$H$21,MATCH(1,(Inventaire_MN!$A$2:$A$21<=E6)*(Inventaire_MN!$B$2:$B$21>=E6),0),8),\"\")","v":"Pistoler-mitrailleur Lourd 100 ED (Très coûteux)"},{"$f":"IF($F6<=$D$4,RANDBETWEEN(1,100),\"\")","v":20},1,null,null,null,"1) Si vous avez des articles cybernétique dans votre marché de nuit, comme par exemple, un Cyberoeil... Les éléments nécessaire à l'installation de cette option est également disponible sur le Marché de nuit."]
[null,{"$f":"IF($F7<=$C$4,RANDBETWEEN(1,100),\"\")","v":65},{"$f":"IF($F7<=$C$4,INDEX(Inventaire_MN!$C$2:$H$21,MATCH(1,(Inventaire_MN!$A$2:$A$21<=B7)*(Inventaire_MN!$B$2:$B$21>=B7),0),$F$3),\"\")","v":"Extension cyberaudio coûtant 500 ED ou moins"},{"$f":"IF($F7<=$D$4,INDEX(Inventaire_MN!$A$2:$H$21,MATCH(1,(Inventaire_MN!$A$2:$A$21<=E7)*(Inventaire_MN!$B$2:$B$21>=E7),0),8),\"\")","v":"Arme de mêlée lourde 100 ED (Très coûteux)"},{"$f":"IF($F7<=$D$4,RANDBETWEEN(1,100),\"\")","v":67},2,null,null,null,"2) Si un cyberimplant acheté sur un Marché de nuit n'est pas installé sur le Marché de nuit, le vendeur vous enverra vers son Charcudoc préféré pour une installation gratuite."]
[null,21,{"$f":"IF($F8<=$C$4,INDEX(Inventaire_MN!$C$2:$H$21,MATCH(1,(Inventaire_MN!$A$2:$A$21<=B8)*(Inventaire_MN!$B$2:$B$21>=B8),0),$F$3),\"\")","v":"Cyberjambe 100 ED (Très coûteux)"},{"$f":"IF($F8<=$D$4,INDEX(Inventaire_MN!$A$2:$H$21,MATCH(1,(Inventaire_MN!$A$2:$A$21<=E8)*(Inventaire_MN!$B$2:$B$21>=E8),0),8),\"\")","v":"Fusil à pompe 500 ED (Onéreux)"},25,3,null,null,null,"3) Les articles de mode peuvent être présent au Marché de nuit."]
[null,98,{"$f":"IF($F9<=$C$4,INDEX(Inventaire_MN!$C$2:$H$21,MATCH(1,(Inventaire_MN!$A$2:$A$21<=B9)*(Inventaire_MN!$B$2:$B$21>=B9),0),$F$3),\"\")","v":"N'importe quel cyberimplant au choix du Meneur de Jeu"},{"$f":"IF($F9<=$D$4,INDEX(Inventaire_MN!$A$2:$H$21,MATCH(1,(Inventaire_MN!$A$2:$A$21<=E9)*(Inventaire_MN!$B$2:$B$21>=E9),0),8),\"\")","v":"Fusil de précision 500 ED (Onéreux)"},32,4,null,null,null,"4) Si vous obtennez un objet qui a plusieurs niveaux de qualité, tous les niveaux de qualité sont présents sur le Marché de nuit. "]
[null,72,{"$f":"IF($F10<=$C$4,INDEX(Inventaire_MN!$C$2:$H$21,MATCH(1,(Inventaire_MN!$A$2:$A$21<=B10)*(Inventaire_MN!$B$2:$B$21>=B10),0),$F$3),\"\")","v":"Extension neuromatériel coûtant 500 ED ou moins"},{"$f":"IF($F10<=$D$4,INDEX(Inventaire_MN!$A$2:$H$21,MATCH(1,(Inventaire_MN!$A$2:$A$21<=E10)*(Inventaire_MN!$B$2:$B$21>=E10),0),8),\"\")","v":"Pistoler-mitrailleur Lourd 100 ED (Très coûteux)"},20,5,null,null,null,"5) Il ne s'agit pas de l'inventaire total, mais d'une liste générale des types d'objets disponibles au Marché."]
[null,61,{"$f":"IF($F11<=$C$4,INDEX(Inventaire_MN!$C$2:$H$21,MATCH(1,(Inventaire_MN!$A$2:$A$21<=B11)*(Inventaire_MN!$B$2:$B$21>=B11),0),$F$3),\"\")","v":"Extension cyberaudio coûtant 500 ED ou moins"},{"$f":"IF($F11<=$D$4,INDEX(Inventaire_MN!$A$2:$H$21,MATCH(1,(Inventaire_MN!$A$2:$A$21<=E11)*(Inventaire_MN!$B$2:$B$21>=E11),0),8),\"\")","v":"Accessoire d'armement coûtant 500 ED ou plus"},97,6]
[null,45,{"$f":"IF($F12<=$C$4,INDEX(Inventaire_MN!$C$2:$H$21,MATCH(1,(Inventaire_MN!$A$2:$A$21<=B12)*(Inventaire_MN!$B$2:$B$21>=B12),0),$F$3),\"\")","v":"Cyberimplant interne coûtant 500 ED ou moins"},{"$f":"IF($F12<=$D$4,INDEX(Inventaire_MN!$A$2:$H$21,MATCH(1,(Inventaire_MN!$A$2:$A$21<=E12)*(Inventaire_MN!$B$2:$B$21>=E12),0),8),\"\")","v":"Arme de mêlée intermédiaire 50 ED (Coûteux)"},64,7]
[null,34,{"$f":"IF($F13<=$C$4,INDEX(Inventaire_MN!$C$2:$H$21,MATCH(1,(Inventaire_MN!$A$2:$A$21<=B13)*(Inventaire_MN!$B$2:$B$21>=B13),0),$F$3),\"\")","v":"Cyberimplant externe coûtant 500 ED ou moins"},{"$f":"IF($F13<=$D$4,INDEX(Inventaire_MN!$A$2:$H$21,MATCH(1,(Inventaire_MN!$A$2:$A$21<=E13)*(Inventaire_MN!$B$2:$B$21>=E13),0),8),\"\")","v":"Pistoler-mitrailleur Lourd 100 ED (Très coûteux)"},17,8]
[null,81,{"$f":"IF($F14<=$C$4,INDEX(Inventaire_MN!$C$2:$H$21,MATCH(1,(Inventaire_MN!$A$2:$A$21<=B14)*(Inventaire_MN!$B$2:$B$21>=B14),0),$F$3),\"\")","v":"Extension cybermembre coûtant 500 ED ou moins"},{"$f":"IF($F14<=$D$4,INDEX(Inventaire_MN!$A$2:$H$21,MATCH(1,(Inventaire_MN!$A$2:$A$21<=E14)*(Inventaire_MN!$B$2:$B$21>=E14),0),8),\"\")","v":""},"",9]
[null,"",{"$f":"IF($F15<=$C$4,INDEX(Inventaire_MN!$C$2:$H$21,MATCH(1,(Inventaire_MN!$A$2:$A$21<=B15)*(Inventaire_MN!$B$2:$B$21>=B15),0),$F$3),\"\")","v":""},{"$f":"IF($F15<=$D$4,INDEX(Inventaire_MN!$A$2:$H$21,MATCH(1,(Inventaire_MN!$A$2:$A$21<=E15)*(Inventaire_MN!$B$2:$B$21>=E15),0),8),\"\")","v":""},"",10]

{"sheet":"Inventaire_MN","index":1,"n_rows":21,"n_cols":8,"rows_kept":21,"cut":false,"hidden":false,"merged":[[0,0,0,1]]}
["Lancer 1d100",null,"Nourriture et drogues","Electronique personelle","Cybermatériel","Vêtements et cyberfashion","Equipement de survie","Armes et protections"]
[1,{"$f":"A2+4","v":5},"Boîte de conserve 10 ED (Bon marché)","Agent 100 ED (Très Coûteux)","Cyberoeil 100 ED (Très Couteux)","Vagabond","Respirateur antipollution 20 ED (Ordinaire)","Pistolet moyen 50 ED (Coûteux)"]
[{"$f":"A2+5","v":6},{"$f":"A3+4","v":10},"Denrées en paquet 10 ED (Bon marché)","Programmes ou hardware volant 100 ED ou moins","Kit Cyberaudio 500 ED (Onéreux)","Couleur du gang","Protection auditive active 1.000 ED (Très onereux)","Pisoltet lourd ou très lourd 100 ED (Très coûteux)"]
[{"$f":"A3+5","v":11},15,"Denrées surgelées 10 ED (Bon marché)","Enregistreur audio 100 ED (Très coûteux)","Câblage neural 500 ED (Onéreux)","Géénrique","Jumelles 50 ED (Coûteux)","Pistoler-mitrailleur 100 ED (Très coûteux)"]
[16,20,"Sacs de céréales 20 ED (Ordinaire)","Détecteur de micros 500 ED (Onéreux)","Cyberbras 500 ED (Onéreux)","Bohème","Fourre-tout 20 ED (Ordinaire)","Pistoler-mitrailleur Lourd 100 ED (Très coûteux)"]
[21,25,"Paquet de croquettes 10 ED (Bon marché)","Analyseur chimique 1.000 ED (Très onéreux)","Cyberjambe 100 ED (Très coûteux)","Décontracté","Lampe-torche 20 ED (Ordinaire)","Fusil à pompe 500 ED (Onéreux)"]
[26,30,"Sacs de prépak 20 ED (Ordinaire)","Ordinateur 50 ED (Coûteux)","Cyberimplant externe coûtant exactement 1.000 ED","Âme nomade","Ruban adhésif 20 ED (Ordinaire)","Fusil d'assault 500 ED (Onéreux)"]
[31,35,"Drogues de rue coûtant 20 ED ou moins","Cyberconsole 500 ED (Onéreux)","Cyberimplant externe coûtant 500 ED ou moins","Pop asiatique","Matelas autogonflant et sac de couchage 20 ED (Ordinaire)","Fusil de précision 500 ED (Onéreux)"]
[36,40,"Alcool médiocre 10 ED (Bon marché)","Téléphone jetable 50 ED (Coûteux)","Cyberimplant interne coûtant exactement 1.000 ED","Urbain Flash","Outils de crochetage 20 ED (Ordinaire)","Arc ou arbalète 100 ED (Très coûteux)"]
[41,45,"Alcool 20 ED (Ordinaire)","Guitare électrique ou autre instrument de musique 500 ED (Onéreux)","Cyberimplant interne coûtant 500 ED ou moins","Cadre Sup","Menottes 50 ED (Coûteux)","Lance-grenade ou lance-roquette 500 ED (Onéreux)"]
[46,50,"Alcool d'excellente qualité 100 ED (Très coûteux)","Programmes ou hardware coûtant exactement 500 ED","Extension cyberoeil coûtant exactement 1.000 ED","Haute couture","Saccoche de Medtech 100 ED (Très coûteux)","Munition coûtant 500 ED ou moins"]
[51,55,"Ration alimentaire 10 ED","Médiscanner 1.000 ED (Très onéreux)","Extension cyberoeil coûtant 500 ED ou moins","Biomoniteur 100 ED (Très coûteux)","Tente et équipement de camping 50 ED (Coûteux)","Une arme éxotique au choix du Meneur de Jeu"]
[56,60,"Poulet cicant 50 ED (Coûteux)","Traceur 500 ED (Onéreux)","Extension cyberaudio coûtant exactement 1.000 ED","dermTeinte (Très couteux)","Corde (60m) 20 ED (Ordinaire)","Arme de mêlée légère 50 ED (Coûteux)"]
[61,65,"Poisson vivant 50 ED (Coûteux)","Communicateur radio 100 ED (Très coûteux)","Extension cyberaudio coûtant 500 ED ou moins","Maillage électromagnétique 10 ED (Bon marché)","Techioutil 100 ED (Très coûteux)","Arme de mêlée intermédiaire 50 ED (Coûteux)"]
[66,70,"Fruit frais 50 ED (Coûteux)","Technoscanner 1.000 ED (Très onéreux)","Extension neuromatériel coûtant exactement 1.000 ED","Tatouage lumineux 100ED (Très coûteux)","Pack hygiène 20 ED (Ordinaire)","Arme de mêlée lourde 100 ED (Très coûteux)"]
[71,75,"Légumes frais 50 ED (Coûteux)","Lunettes conenctées 500 ED (Onéreux)","Extension neuromatériel coûtant 500 ED ou moins","Lentilles polychromes 100 ED (Très coûteux)","Combinaison antiradiation 1.000 ED (Très onéreuse)","Arme de mêlée très lourde 100 ED (Très coûteux)"]
[76,80,"Légumes-racines 20 ED (Ordinaire)","Détecteur de radar 500 ED (Onéreux)","Extension cybermembre coûtant exactement 1.000 ED","Montre dermique 100 ED (Très coûteux)","Fusée de détresse","Armure coûtant 100 ED ou moins"]
[81,85,"Porcs vivants 100 ED (Très coûteux)","Brouilleur/décrypteur 500 ED (Onéreux)","Extension cybermembre coûtant 500 ED ou moins","Tech-chev 100 ED (Trè coûteux)","Lande-grappin 100 ED (Très coûteux)","Armure coûtant exactement 500 ED"]
[86,90,"Fruit exotiques 100 ED (Très coûteux)","Récepteur radio/lecteur de musique 50 ED (Coûteux)","Cyberfashion au choix du Meneur de Jeu","Générique","Trousse de Techie","Armure coûtant exactement 1000 ED"]
[91,95,"Légumes exotiques 100 ED (Très coûteux)","Lecteur de danse sensorielle 1.000 ED (Très onéreux)","Cyberimplant au choix du Meneur de Jeu","Décontracté","Pelle ou hache 50 ED (Coûteux)","Accessoire d'armement coûtant 100 ED ou plus"]
[96,100,"Drogues de la rue coûtant exactement 50 ED","Lunettes de réalité virtuelle 100 ED (Très coûteux)","N'importe quel cyberimplant au choix du Meneur de Jeu","Couleur du gang","Hypodair 50 ED (Coûteux)","Accessoire d'armement coûtant 500 ED ou plus"]